[Event "Late-Titled-Tuesday-Blitz-October-03-2023"]
[Site "Chess.com"]
[Date "2023.10.03"]
[Round "8"]
[White "jcibarra"]
[Black "BeanScreen"]
[Result "1-0"]
[WhiteElo "2947"]
[BlackElo "2723"]
[TimeControl "180+1"]
[EndTime "15:24:24 PDT"]
[Termination "jcibarra won by resignation"]

1. e4 {[%clk 0:03:00.9]} 1... e5 {[%clk 0:03:00.6]} 2. Nf3 {[%clk 0:03:01.2]}
2... Nc6 {[%clk 0:03:01.3]} 3. Bb5 {[%clk 0:03:00.4]} 3... a6 {[%clk 0:03:01.2]}
4. Bxc6 {[%clk 0:03:00.3]} 4... dxc6 {[%clk 0:03:02.1]} 5. O-O {[%clk
0:03:00.1]} 5... Qf6 {[%clk 0:03:02.5]} 6. d4 {[%clk 0:03:00]} 6... exd4 {[%clk
0:03:02.7]} 7. Bg5 {[%clk 0:03:00.2]} 7... Qd6 {[%clk 0:03:01.8]} 8. Nxd4 {[%clk
0:03:00]} 8... Be7 {[%clk 0:02:58.1]} 9. Be3 {[%clk 0:02:59.4]} 9... Bd7 {[%clk
0:02:56.7]} 10. Nd2 {[%clk 0:02:58.4]} 10... O-O-O {[%clk 0:02:53.7]} 11. Nc4
{[%clk 0:02:49.5]} 11... Qg6 {[%clk 0:02:52.1]} 12. Ne5 {[%clk 0:02:42.4]} 12...
Qf6 {[%clk 0:02:26]} 13. Nxd7 {[%clk 0:02:40.2]} 13... Rxd7 {[%clk 0:02:25.8]}
14. Qg4 {[%clk 0:02:39.4]} 14... Qg6 {[%clk 0:02:10.7]} 15. Qh3 {[%clk
0:02:33.8]} 15... Qxe4 {[%clk 0:01:55.6]} 16. Nf5 {[%clk 0:02:18.8]} 16... Nf6
{[%clk 0:01:52.2]} 17. Rfe1 {[%clk 0:02:02.7]} 17... Qg4 {[%clk 0:01:44.1]} 18.
Qxg4 {[%clk 0:01:56.3]} 18... Nxg4 {[%clk 0:01:45]} 19. Bd4 {[%clk 0:01:43.9]}
19... Bf6 {[%clk 0:01:36.8]} 20. Bxf6 {[%clk 0:01:43.7]} 20... Nxf6 {[%clk
0:01:14.6]} 21. Nxg7 {[%clk 0:01:40.4]} 21... Rd2 {[%clk 0:01:14.4]} 22. Rac1
{[%clk 0:01:39.6]} 22... Ng4 {[%clk 0:01:10.8]} 23. f3 {[%clk 0:01:22.1]} 23...
Rg8 {[%clk 0:01:10.4]} 24. Nf5 {[%clk 0:01:20.7]} 24... Rxg2+ {[%clk 0:01:02.2]}
25. Kxg2 {[%clk 0:01:20.8]} 25... Ne3+ {[%clk 0:01:02.8]} 26. Kf2 {[%clk
0:01:20.4]} 26... Nxf5 {[%clk 0:01:03.7]} 27. Re5 {[%clk 0:01:19.1]} 27... Nd6
{[%clk 0:01:01]} 28. Rg1 {[%clk 0:01:16.6]} 28... Rd8 {[%clk 0:00:58.4]} 29. b3
{[%clk 0:01:14.5]} 29... Nb5 {[%clk 0:00:49]} 30. Rg7 {[%clk 0:01:11.9]} 30...
Rd2+ {[%clk 0:00:44]} 31. Re2 {[%clk 0:01:09.9]} 31... Rd8 {[%clk 0:00:41.4]}
32. Rxf7 {[%clk 0:01:08]} 32... b6 {[%clk 0:00:39.5]} 33. Rxh7 {[%clk
0:01:06.4]} 33... Kb7 {[%clk 0:00:34.6]} 34. c4 {[%clk 0:01:05.8]} 34... Nc3
{[%clk 0:00:29.8]} 35. Ree7 {[%clk 0:01:06.3]} 35... Rc8 {[%clk 0:00:22.9]} 36.
a4 {[%clk 0:01:02.2]} 36... a5 {[%clk 0:00:21.1]} 37. h4 {[%clk 0:01:01.5]}
37... Na2 {[%clk 0:00:19.6]} 38. h5 {[%clk 0:01:00.6]} 38... Nc1 {[%clk
0:00:19.8]} 39. h6 {[%clk 0:01:01.4]} 39... Nxb3 {[%clk 0:00:19.5]} 40. Rxc7+
{[%clk 0:01:01.3]} 40... Rxc7 {[%clk 0:00:19.5]} 41. Rxc7+ {[%clk 0:01:01.9]}
41... Kxc7 {[%clk 0:00:20.4]} 42. h7 {[%clk 0:01:02.2]} 42... Kd6 {[%clk
0:00:19.5]} 43. h8=Q {[%clk 0:01:02.6]} 43... Kc5 {[%clk 0:00:20.2]} 44. Qc3
{[%clk 0:01:00.4]} 44... Nd4 {[%clk 0:00:18.6]} 45. f4 {[%clk 0:00:59.2]} 45...
Nf5 {[%clk 0:00:09.2]} 46. Qe5+ {[%clk 0:00:58.2]} 46... Kxc4 {[%clk 0:00:09.8]}
47. Qxf5 {[%clk 0:00:58.8]} 47... b5 {[%clk 0:00:10.3]} 48. Qe6+ {[%clk
0:00:58.8]} 48... Kc5 {[%clk 0:00:10.4]} 49. Qe5+ {[%clk 0:00:57.6]} 49... Kb4
{[%clk 0:00:09.9]} 50. axb5 {[%clk 0:00:57]} 50... cxb5 {[%clk 0:00:10.8]} 51.
Qd4+ {[%clk 0:00:57.1]} 51... Kb3 {[%clk 0:00:11]} 52. Qc5 {[%clk 0:00:56.4]}
52... Ka4 {[%clk 0:00:10.4]} 53. Ke3 {[%clk 0:00:56.5]} 53... b4 {[%clk
0:00:11]} 54. Kd3 {[%clk 0:00:56.8]} 54... b3 {[%clk 0:00:10.6]} 55. Qc4+ {[%clk
0:00:57]} 55... Ka3 {[%clk 0:00:10.8]} 56. Kc3 {[%clk 0:00:57.3]} 56... a4
{[%clk 0:00:11]} 57. Qb4+ {[%clk 0:00:57.4]} 57... Ka2 {[%clk 0:00:11]} 58.
Qxa4+ {[%clk 0:00:58]} 1-0

[Event "Late-Titled-Tuesday-Blitz-October-03-2023"]
[Site "Chess.com"]
[Date "2023.10.03"]
[Round "8"]
[White "venturov"]
[Black "IPAchess"]
[Result "0-1"]
[WhiteElo "2480"]
[BlackElo "2346"]
[TimeControl "180+1"]
[EndTime "15:24:28 PDT"]
[Termination "IPAchess won by resignation"]

1. Nf3 {[%clk 0:03:00.9]} 1... d5 {[%clk 0:02:58.6]} 2. e3 {[%clk 0:03:00.8]}
2... Nf6 {[%clk 0:02:59.2]} 3. c4 {[%clk 0:03:00.8]} 3... e6 {[%clk 0:02:57.4]}
4. b3 {[%clk 0:03:01.1]} 4... Bd6 {[%clk 0:02:58]} 5. Bb2 {[%clk 0:03:00.7]}
5... O-O {[%clk 0:02:58.3]} 6. Nc3 {[%clk 0:03:00.8]} 6... Nbd7 {[%clk
0:02:58.1]} 7. Qc2 {[%clk 0:02:46.2]} 7... a6 {[%clk 0:02:52.3]} 8. d4 {[%clk
0:02:41.5]} 8... b6 {[%clk 0:02:48]} 9. Bd3 {[%clk 0:02:39.6]} 9... Bb7 {[%clk
0:02:47.7]} 10. cxd5 {[%clk 0:02:37.3]} 10... exd5 {[%clk 0:02:43.2]} 11. O-O
{[%clk 0:02:27.6]} 11... Qe7 {[%clk 0:02:29.1]} 12. Ne2 {[%clk 0:02:26]} 12...
Rfe8 {[%clk 0:02:21.1]} 13. Ng3 {[%clk 0:02:26.1]} 13... g6 {[%clk 0:02:18.6]}
14. Rfe1 {[%clk 0:02:26.5]} 14... Rac8 {[%clk 0:02:12.4]} 15. Nd2 {[%clk
0:02:24.4]} 15... c5 {[%clk 0:02:07.9]} 16. dxc5 {[%clk 0:02:23.4]} 16... Nxc5
{[%clk 0:02:05.7]} 17. Qb1 {[%clk 0:02:12.8]} 17... Be5 {[%clk 0:01:49.9]} 18.
Bf1 {[%clk 0:02:08]} 18... h5 {[%clk 0:01:43.2]} 19. Nf3 {[%clk 0:02:04]} 19...
Bxb2 {[%clk 0:01:31.4]} 20. Qxb2 {[%clk 0:02:04.9]} 20... Nce4 {[%clk 0:01:02]}
21. Nxe4 {[%clk 0:01:58.8]} 21... dxe4 {[%clk 0:00:57.6]} 22. Nd4 {[%clk
0:01:57.8]} 22... Ng4 {[%clk 0:00:52.5]} 23. h3 {[%clk 0:01:53.8]} 23... Ne5
{[%clk 0:00:52.5]} 24. Rac1 {[%clk 0:01:48.7]} 24... Qg5 {[%clk 0:00:30.5]} 25.
Rxc8 {[%clk 0:01:41]} 25... Bxc8 {[%clk 0:00:27.7]} 26. Kh1 {[%clk 0:01:30]}
26... Qh4 {[%clk 0:00:22.8]} 27. Rc1 {[%clk 0:01:18.9]} 27... Nd3 {[%clk
0:00:14.5]} 28. Bxd3 {[%clk 0:01:09.4]} 28... exd3 {[%clk 0:00:15.4]} 29. Nf3
{[%clk 0:01:09.9]} 29... Qe4 {[%clk 0:00:13.7]} 30. Ng5 {[%clk 0:00:56.7]} 30...
Qb7 {[%clk 0:00:09.6]} 31. Qd4 {[%clk 0:00:46.1]} 31... Bf5 {[%clk 0:00:07.9]}
32. f3 {[%clk 0:00:37.6]} 32... Qe7 {[%clk 0:00:05.8]} 33. h4 {[%clk 0:00:33]}
33... Rd8 {[%clk 0:00:05.5]} 34. Qxb6 {[%clk 0:00:29.1]} 34... d2 {[%clk
0:00:05.8]} 35. Rd1 {[%clk 0:00:27.5]} 35... Bc2 {[%clk 0:00:06.3]} 36. Rxd2
{[%clk 0:00:15.3]} 36... Rxd2 {[%clk 0:00:07.2]} 37. Qc5 {[%clk 0:00:13.8]}
37... Qxc5 {[%clk 0:00:06.7]} 0-1

[Event "Late-Titled-Tuesday-Blitz-October-03-2023"]
[Site "Chess.com"]
[Date "2023.10.03"]
[Round "8"]
[White "talaicito"]
[Black "Bala-Afiada"]
[Result "1-0"]
[WhiteElo "2175"]
[BlackElo "1932"]
[TimeControl "180+1"]
[EndTime "15:24:28 PDT"]
[Termination "talaicito won on time"]

1. d4 {[%clk 0:03:00.9]} 1... Nf6 {[%clk 0:02:59.2]} 2. Nc3 {[%clk 0:03:01.4]}
2... e6 {[%clk 0:02:58.4]} 3. Bf4 {[%clk 0:03:01.8]} 3... c6 {[%clk 0:02:56]} 4.
Nf3 {[%clk 0:02:52.4]} 4... d5 {[%clk 0:02:56.2]} 5. e3 {[%clk 0:02:52.1]} 5...
Bd6 {[%clk 0:02:56.1]} 6. Bd3 {[%clk 0:02:49.7]} 6... Bxf4 {[%clk 0:02:55.6]} 7.
exf4 {[%clk 0:02:50.6]} 7... Nbd7 {[%clk 0:02:53.5]} 8. O-O {[%clk 0:02:45.4]}
8... c5 {[%clk 0:02:53.8]} 9. dxc5 {[%clk 0:02:44.1]} 9... Nxc5 {[%clk
0:02:54.7]} 10. Ne5 {[%clk 0:02:44.3]} 10... Nxd3 {[%clk 0:02:50.9]} 11. Qxd3
{[%clk 0:02:39.6]} 11... O-O {[%clk 0:02:30]} 12. Ne2 {[%clk 0:02:39.4]} 12...
a6 {[%clk 0:02:20.4]} 13. Nd4 {[%clk 0:02:39.6]} 13... b5 {[%clk 0:02:18.7]} 14.
c3 {[%clk 0:02:39.4]} 14... Bb7 {[%clk 0:02:13.1]} 15. Rad1 {[%clk 0:02:38]}
15... Qc7 {[%clk 0:02:10.9]} 16. Rfe1 {[%clk 0:02:37.7]} 16... Rac8 {[%clk
0:02:10]} 17. g4 {[%clk 0:02:24.6]} 17... Ne4 {[%clk 0:01:50.8]} 18. f3 {[%clk
0:02:12.2]} 18... Nc5 {[%clk 0:01:43.9]} 19. Qe2 {[%clk 0:02:11.1]} 19... f6
{[%clk 0:01:39.4]} 20. Nd3 {[%clk 0:02:08.8]} 20... Nxd3 {[%clk 0:01:34.8]} 21.
Qxd3 {[%clk 0:02:09.7]} 21... e5 {[%clk 0:01:14.4]} 22. Nf5 {[%clk 0:01:52]}
22... Qc5+ {[%clk 0:00:43.3]} 23. Kg2 {[%clk 0:01:38.1]} 23... e4 {[%clk
0:00:42.9]} 24. Qd4 {[%clk 0:01:36.8]} 24... exf3+ {[%clk 0:00:42.3]} 25. Kxf3
{[%clk 0:01:37.6]} 25... Qxd4 {[%clk 0:00:40.3]} 26. Rxd4 {[%clk 0:01:29.5]}
26... Rce8 {[%clk 0:00:20.5]} 27. Rxe8 {[%clk 0:01:22.6]} 27... Rxe8 {[%clk
0:00:21.4]} 28. Nd6 {[%clk 0:01:21.6]} 28... Re7 {[%clk 0:00:15.9]} 29. Nxb7
{[%clk 0:01:18.2]} 29... Rxb7 {[%clk 0:00:16.8]} 30. Rxd5 {[%clk 0:01:18.8]}
30... Kf7 {[%clk 0:00:16.2]} 31. Rd6 {[%clk 0:01:06]} 31... a5 {[%clk
0:00:15.1]} 32. Ra6 {[%clk 0:01:04.9]} 32... a4 {[%clk 0:00:10.1]} 33. f5 {[%clk
0:01:03]} 33... g6 {[%clk 0:00:09.4]} 34. Kf4 {[%clk 0:01:00.1]} 34... g5+
{[%clk 0:00:08.6]} 35. Kf3 {[%clk 0:00:58.4]} 35... Rd7 {[%clk 0:00:06.1]} 36.
Rb6 {[%clk 0:00:55.3]} 36... Rd3+ {[%clk 0:00:05.2]} 37. Ke4 {[%clk 0:00:53]}
37... Rd2 {[%clk 0:00:05.1]} 38. Rb7+ {[%clk 0:00:52.7]} 38... Kg8 {[%clk
0:00:05.6]} 39. Rxb5 {[%clk 0:00:51.8]} 39... Rxh2 {[%clk 0:00:05.3]} 40. Kd5
{[%clk 0:00:51.1]} 40... Rd2+ {[%clk 0:00:04.5]} 41. Ke6 {[%clk 0:00:50.5]}
41... Kg7 {[%clk 0:00:05]} 42. Rb7+ {[%clk 0:00:50.1]} 42... Kh6 {[%clk
0:00:05.2]} 43. Kxf6 {[%clk 0:00:49.8]} 43... Rd6+ {[%clk 0:00:05.8]} 44. Ke7
{[%clk 0:00:48.9]} 44... Rc6 {[%clk 0:00:02.9]} 45. f6 {[%clk 0:00:38.3]} 45...
Kg6 {[%clk 0:00:02]} 46. f7 {[%clk 0:00:37.1]} 1-0

[Event "Late-Titled-Tuesday-Blitz-October-03-2023"]
[Site "Chess.com"]
[Date "2023.10.03"]
[Round "8"]
[White "lemures27"]
[Black "Kirill_Klukin"]
[Result "1-0"]
[WhiteElo "2484"]
[BlackElo "2683"]
[TimeControl "180+1"]
[EndTime "15:24:34 PDT"]
[Termination "lemures27 won by resignation"]

1. e4 {[%clk 0:03:00.9]} 1... c5 {[%clk 0:03:00]} 2. Nf3 {[%clk 0:03:00.5]} 2...
g6 {[%clk 0:02:57.7]} 3. c3 {[%clk 0:02:56.9]} 3... Bg7 {[%clk 0:02:57.6]} 4. d4
{[%clk 0:02:56.8]} 4... cxd4 {[%clk 0:02:58.5]} 5. cxd4 {[%clk 0:02:56.9]} 5...
d5 {[%clk 0:02:59.3]} 6. e5 {[%clk 0:02:56.5]} 6... a6 {[%clk 0:02:59.8]} 7. h3
{[%clk 0:02:55.6]} 7... Nc6 {[%clk 0:03:00.1]} 8. Nc3 {[%clk 0:02:52.6]} 8... f6
{[%clk 0:03:00.3]} 9. Bf4 {[%clk 0:02:50.7]} 9... fxe5 {[%clk 0:02:57]} 10. dxe5
{[%clk 0:02:48.3]} 10... e6 {[%clk 0:02:56.8]} 11. Be2 {[%clk 0:02:48]} 11...
Nge7 {[%clk 0:02:57.2]} 12. O-O {[%clk 0:02:47.9]} 12... O-O {[%clk 0:02:57.6]}
13. Bh2 {[%clk 0:02:47]} 13... Bd7 {[%clk 0:02:51.2]} 14. Re1 {[%clk 0:02:46.6]}
14... Rc8 {[%clk 0:02:51.2]} 15. Bd3 {[%clk 0:02:41.8]} 15... b5 {[%clk
0:02:49.8]} 16. Rc1 {[%clk 0:02:40.6]} 16... Qb6 {[%clk 0:02:48.4]} 17. a3
{[%clk 0:02:34.3]} 17... Nf5 {[%clk 0:02:46.7]} 18. Qd2 {[%clk 0:02:29.8]} 18...
Bh6 {[%clk 0:02:36]} 19. Qd1 {[%clk 0:02:15.1]} 19... Bxc1 {[%clk 0:02:34.1]}
20. Qxc1 {[%clk 0:02:15.2]} 20... Nh4 {[%clk 0:01:42.9]} 21. Be2 {[%clk
0:02:09.7]} 21... Nxf3+ {[%clk 0:01:39.4]} 22. Bxf3 {[%clk 0:02:00.9]} 22... Nd4
{[%clk 0:01:39.8]} 23. Bg4 {[%clk 0:01:54.2]} 23... Nb3 {[%clk 0:01:10.7]} 24.
Qc2 {[%clk 0:01:41.2]} 24... d4 {[%clk 0:01:08.8]} 25. Qxb3 {[%clk 0:01:36.6]}
25... dxc3 {[%clk 0:01:08.6]} 26. Bg3 {[%clk 0:01:37.2]} 26... c2 {[%clk
0:00:46.8]} 27. Rc1 {[%clk 0:01:34.9]} 27... Qc6 {[%clk 0:00:47]} 28. Qd3 {[%clk
0:01:27.5]} 28... Be8 {[%clk 0:00:32]} 29. Bh4 {[%clk 0:01:21.9]} 29... Rf4
{[%clk 0:00:25.6]} 30. Bf6 {[%clk 0:01:16]} 30... Qc4 {[%clk 0:00:21.1]} 31. Qd2
{[%clk 0:01:14.5]} 31... Bf7 {[%clk 0:00:16.4]} 32. g3 {[%clk 0:01:10.1]} 32...
Rxf6 {[%clk 0:00:06.7]} 33. exf6 {[%clk 0:01:09]} 33... Qc5 {[%clk 0:00:06.5]}
34. Qh6 {[%clk 0:01:04.4]} 34... Qf8 {[%clk 0:00:06.7]} 35. Qe3 {[%clk
0:01:03.7]} 35... Qc5 {[%clk 0:00:05.6]} 36. Qh6 {[%clk 0:00:59.5]} 36... Qf8
{[%clk 0:00:05.9]} 37. Qd2 {[%clk 0:00:58.7]} 37... h5 {[%clk 0:00:05.3]} 38.
Bf3 {[%clk 0:00:55.7]} 38... Qc5 {[%clk 0:00:05.7]} 39. Be4 {[%clk 0:00:53.8]}
39... Qe5 {[%clk 0:00:05.4]} 40. Rxc2 {[%clk 0:00:52.8]} 40... Rxc2 {[%clk
0:00:05.7]} 41. Qd8+ {[%clk 0:00:49.6]} 41... Kh7 {[%clk 0:00:04.9]} 42. Bxc2
{[%clk 0:00:49.6]} 42... Qe1+ {[%clk 0:00:02.4]} 43. Kg2 {[%clk 0:00:48.6]}
43... Qe5 {[%clk 0:00:02.1]} 44. Qe7 {[%clk 0:00:48.2]} 44... Qd5+ {[%clk
0:00:02.5]} 45. Kh2 {[%clk 0:00:46.8]} 45... Kg8 {[%clk 0:00:02.9]} 46. Bxg6
{[%clk 0:00:44.5]} 46... e5 {[%clk 0:00:03.5]} 47. Bxf7+ {[%clk 0:00:43.9]}
47... Qxf7 {[%clk 0:00:04.4]} 48. Qxe5 {[%clk 0:00:43.4]} 48... Qb3 {[%clk
0:00:03.9]} 49. Qe7 {[%clk 0:00:42.4]} 49... Qf7 {[%clk 0:00:01.2]} 50. Qxf7+
{[%clk 0:00:38.4]} 50... Kxf7 {[%clk 0:00:02.1]} 51. g4 {[%clk 0:00:38.6]} 1-0

[Event "Late-Titled-Tuesday-Blitz-October-03-2023"]
[Site "Chess.com"]
[Date "2023.10.03"]
[Round "8"]
[White "Likvidator228"]
[Black "The_Princess_Moon"]
[Result "1-0"]
[WhiteElo "2536"]
[BlackElo "2280"]
[TimeControl "180+1"]
[EndTime "15:24:36 PDT"]
[Termination "Likvidator228 won on time"]

1. g4 {[%clk 0:02:59]} 1... c5 {[%clk 0:03:00.9]} 2. Bg2 {[%clk 0:02:58.7]} 2...
Nc6 {[%clk 0:02:59.2]} 3. c4 {[%clk 0:02:57.8]} 3... d6 {[%clk 0:02:58.8]} 4. g5
{[%clk 0:02:57.9]} 4... e6 {[%clk 0:02:57.2]} 5. h4 {[%clk 0:02:57.2]} 5... d5
{[%clk 0:02:57.1]} 6. Nf3 {[%clk 0:02:54.3]} 6... dxc4 {[%clk 0:02:51.6]} 7. Na3
{[%clk 0:02:50.6]} 7... h6 {[%clk 0:02:35.7]} 8. Nxc4 {[%clk 0:02:49.6]} 8...
hxg5 {[%clk 0:02:35.1]} 9. hxg5 {[%clk 0:02:49.9]} 9... Rxh1+ {[%clk 0:02:34]}
10. Bxh1 {[%clk 0:02:50.8]} 10... Nge7 {[%clk 0:02:33.1]} 11. d3 {[%clk
0:02:49.2]} 11... Nf5 {[%clk 0:02:32.3]} 12. Bf4 {[%clk 0:02:47.6]} 12... Be7
{[%clk 0:02:30.8]} 13. Qd2 {[%clk 0:02:45.3]} 13... Bd7 {[%clk 0:02:02.8]} 14.
Nfe5 {[%clk 0:02:37.5]} 14... Rc8 {[%clk 0:01:44.9]} 15. Nxd7 {[%clk 0:02:34.7]}
15... Qxd7 {[%clk 0:01:42.4]} 16. O-O-O {[%clk 0:02:35.3]} 16... b5 {[%clk
0:01:40.3]} 17. Ne5 {[%clk 0:02:34.1]} 17... Nxe5 {[%clk 0:01:39.8]} 18. Bxe5
{[%clk 0:02:35]} 18... Bd6 {[%clk 0:01:30.6]} 19. Qf4 {[%clk 0:02:22.6]} 19...
Nd4 {[%clk 0:01:22.8]} 20. Re1 {[%clk 0:02:06.8]} 20... Bf8 {[%clk 0:00:54.3]}
21. Kb1 {[%clk 0:02:05.3]} 21... Nc6 {[%clk 0:00:48.2]} 22. Bc3 {[%clk
0:01:55.4]} 22... b4 {[%clk 0:00:47.2]} 23. Bd2 {[%clk 0:01:54.6]} 23... Nd4
{[%clk 0:00:43.6]} 24. e3 {[%clk 0:01:44.6]} 24... Nf5 {[%clk 0:00:29.3]} 25.
Be4 {[%clk 0:01:42.8]} 25... Nd6 {[%clk 0:00:27.7]} 26. Bf3 {[%clk 0:01:37.3]}
26... Qb5 {[%clk 0:00:21.4]} 27. Be2 {[%clk 0:01:35.6]} 27... Qa4 {[%clk
0:00:20.3]} 28. b3 {[%clk 0:01:34.6]} 28... Qa3 {[%clk 0:00:18.8]} 29. Bc1
{[%clk 0:01:34.3]} 29... Qa5 {[%clk 0:00:18.6]} 30. Bb2 {[%clk 0:01:26.5]} 30...
Nb5 {[%clk 0:00:18.5]} 31. Rc1 {[%clk 0:01:22.1]} 31... Qb6 {[%clk 0:00:16.3]}
32. g6 {[%clk 0:01:13.1]} 32... f6 {[%clk 0:00:14.4]} 33. Qc4 {[%clk 0:01:08.6]}
33... Rd8 {[%clk 0:00:12.3]} 34. d4 {[%clk 0:00:54.3]} 34... a6 {[%clk
0:00:08.3]} 35. dxc5 {[%clk 0:00:51.6]} 35... Qc6 {[%clk 0:00:08.1]} 36. Qxb4
{[%clk 0:00:46.9]} 36... Be7 {[%clk 0:00:04.9]} 37. a4 {[%clk 0:00:45.9]} 37...
Nc7 {[%clk 0:00:02.6]} 38. Qb6 {[%clk 0:00:41.2]} 38... Qe4+ {[%clk 0:00:02.6]}
39. Ka1 {[%clk 0:00:40]} 39... Nd5 {[%clk 0:00:02.6]} 40. Qxa6 {[%clk 0:00:35]}
40... Kf8 {[%clk 0:00:02.9]} 41. Qc4 {[%clk 0:00:34.9]} 41... Qf5 {[%clk
0:00:02.4]} 42. e4 {[%clk 0:00:33.4]} 42... Qxf2 {[%clk 0:00:02.4]} 43. exd5
{[%clk 0:00:33.7]} 43... exd5 {[%clk 0:00:03]} 44. Qc2 {[%clk 0:00:30.8]} 44...
Rb8 {[%clk 0:00:03.1]} 45. Bb5 {[%clk 0:00:29.9]} 45... Qg3 {[%clk 0:00:02.7]}
46. c6 {[%clk 0:00:30.1]} 46... Qxg6 {[%clk 0:00:02.7]} 47. Qxg6 {[%clk
0:00:29.6]} 1-0

[Event "Late-Titled-Tuesday-Blitz-October-03-2023"]
[Site "Chess.com"]
[Date "2023.10.03"]
[Round "8"]
[White "Giorno"]
[Black "DucksParadise"]
[Result "0-1"]
[WhiteElo "2511"]
[BlackElo "2650"]
[TimeControl "180+1"]
[EndTime "15:24:37 PDT"]
[Termination "DucksParadise won by resignation"]

1. a3 {[%clk 0:03:00.9]} 1... g6 {[%clk 0:02:59.1]} 2. c4 {[%clk 0:03:01.2]}
2... Bg7 {[%clk 0:02:56.7]} 3. e3 {[%clk 0:03:01.6]} 3... e5 {[%clk 0:02:54.7]}
4. Nc3 {[%clk 0:03:01.2]} 4... Ne7 {[%clk 0:02:53.8]} 5. Nf3 {[%clk 0:02:56.9]}
5... O-O {[%clk 0:02:47.7]} 6. d4 {[%clk 0:02:50.7]} 6... exd4 {[%clk
0:02:47.6]} 7. Nxd4 {[%clk 0:02:50.1]} 7... d5 {[%clk 0:02:41.4]} 8. Be2 {[%clk
0:02:39.4]} 8... dxc4 {[%clk 0:02:13.2]} 9. Bxc4 {[%clk 0:02:40.3]} 9... c5
{[%clk 0:02:09.8]} 10. Nde2 {[%clk 0:02:38.5]} 10... Qxd1+ {[%clk 0:02:10.4]}
11. Nxd1 {[%clk 0:02:37.7]} 11... Nbc6 {[%clk 0:02:08.5]} 12. O-O {[%clk
0:02:33]} 12... Ne5 {[%clk 0:02:07.9]} 13. Bb3 {[%clk 0:02:24.5]} 13... c4
{[%clk 0:02:05.8]} 14. Bc2 {[%clk 0:02:23.9]} 14... Bf5 {[%clk 0:01:58.2]} 15.
e4 {[%clk 0:02:19]} 15... Be6 {[%clk 0:01:58]} 16. f4 {[%clk 0:02:05.3]} 16...
Nd3 {[%clk 0:01:57.1]} 17. Ndc3 {[%clk 0:01:54.3]} 17... a6 {[%clk 0:01:49.8]}
18. Rb1 {[%clk 0:01:45.8]} 18... b5 {[%clk 0:01:47.2]} 19. Be3 {[%clk
0:01:45.9]} 19... Rfd8 {[%clk 0:01:44.6]} 20. h3 {[%clk 0:01:38.5]} 20... f6
{[%clk 0:01:42.5]} 21. g4 {[%clk 0:01:36.6]} 21... f5 {[%clk 0:01:39]} 22. gxf5
{[%clk 0:01:30.2]} 22... gxf5 {[%clk 0:01:39.3]} 23. e5 {[%clk 0:01:29.9]} 23...
Bh6 {[%clk 0:01:37.3]} 24. Nd4 {[%clk 0:01:26.6]} 24... Bxf4 {[%clk 0:01:33.6]}
25. Nxe6 {[%clk 0:01:12.1]} 25... Bxe3+ {[%clk 0:01:32.2]} 26. Kh2 {[%clk
0:01:05.9]} 26... Rd7 {[%clk 0:01:31]} 27. Rf3 {[%clk 0:01:05.6]} 27... Kf7
{[%clk 0:01:14.9]} 28. Rxe3 {[%clk 0:00:50.2]} 28... Kxe6 {[%clk 0:01:13.8]} 29.
b3 {[%clk 0:00:38.6]} 29... Nf4 {[%clk 0:01:03.5]} 30. Kh1 {[%clk 0:00:34]}
30... Rd2 {[%clk 0:00:58.4]} 31. Rc1 {[%clk 0:00:34.1]} 31... Ned5 {[%clk
0:00:50.5]} 32. Nxd5 {[%clk 0:00:32]} 32... Nxd5 {[%clk 0:00:51.4]} 33. Rf3
{[%clk 0:00:30.3]} 33... f4 {[%clk 0:00:51]} 34. bxc4 {[%clk 0:00:30.2]} 34...
bxc4 {[%clk 0:00:51.5]} 35. Be4 {[%clk 0:00:28.4]} 35... Rc8 {[%clk 0:00:30.7]}
36. Bxd5+ {[%clk 0:00:26.2]} 36... Kxd5 {[%clk 0:00:29.7]} 37. Rxf4 {[%clk
0:00:25.9]} 37... c3 {[%clk 0:00:29.9]} 38. Rf7 {[%clk 0:00:17.2]} 38... Kxe5
{[%clk 0:00:27.1]} 39. Re7+ {[%clk 0:00:13.6]} 39... Kd4 {[%clk 0:00:24.9]} 40.
Rd7+ {[%clk 0:00:11.8]} 40... Ke3 {[%clk 0:00:24.4]} 41. Re1+ {[%clk 0:00:09.3]}
41... Kf2 {[%clk 0:00:23.7]} 42. Rd1 {[%clk 0:00:04.9]} 42... Rxd7 {[%clk
0:00:22.8]} 43. Rxd7 {[%clk 0:00:04.4]} 43... c2 {[%clk 0:00:23.7]} 44. Rc7
{[%clk 0:00:04.6]} 44... Rxc7 {[%clk 0:00:23.3]} 0-1

[Event "Late-Titled-Tuesday-Blitz-October-03-2023"]
[Site "Chess.com"]
[Date "2023.10.03"]
[Round "8"]
[White "chessajedrezz2020"]
[Black "tomozupan"]
[Result "1-0"]
[WhiteElo "2688"]
[BlackElo "2257"]
[TimeControl "180+1"]
[EndTime "15:24:39 PDT"]
[Termination "chessajedrezz2020 won on time"]

1. Nf3 {[%clk 0:02:58.6]} 1... Nf6 {[%clk 0:02:58.6]} 2. g3 {[%clk 0:02:57]}
2... g6 {[%clk 0:02:58.8]} 3. Bg2 {[%clk 0:02:55.8]} 3... Bg7 {[%clk 0:02:59.1]}
4. O-O {[%clk 0:02:55.5]} 4... O-O {[%clk 0:02:58.5]} 5. c4 {[%clk 0:02:49.9]}
5... d5 {[%clk 0:02:57]} 6. cxd5 {[%clk 0:02:41.2]} 6... Nxd5 {[%clk 0:02:56.1]}
7. d4 {[%clk 0:02:19]} 7... Nc6 {[%clk 0:02:54.7]} 8. e4 {[%clk 0:01:58.2]} 8...
Nb6 {[%clk 0:02:53.8]} 9. d5 {[%clk 0:01:50.5]} 9... Na5 {[%clk 0:02:53.2]} 10.
Nc3 {[%clk 0:00:31.9]} 10... c6 {[%clk 0:02:48.2]} 11. h3 {[%clk 0:00:26.5]}
11... cxd5 {[%clk 0:02:41.2]} 12. Nxd5 {[%clk 0:00:20.5]} 12... Nxd5 {[%clk
0:02:33.1]} 13. exd5 {[%clk 0:00:20.5]} 13... Nc4 {[%clk 0:02:30]} 14. Qe2
{[%clk 0:00:16.1]} 14... b5 {[%clk 0:02:06.3]} 15. Rd1 {[%clk 0:00:11.7]} 15...
Bb7 {[%clk 0:01:57.2]} 16. Nd4 {[%clk 0:00:11.5]} 16... a6 {[%clk 0:01:53.2]}
17. Nc6 {[%clk 0:00:07.7]} 17... Bxc6 {[%clk 0:01:45.8]} 18. dxc6 {[%clk
0:00:07.9]} 18... Qc7 {[%clk 0:01:43.8]} 19. Rd7 {[%clk 0:00:06.8]} 19... Qb6
{[%clk 0:01:33.4]} 20. Rxe7 {[%clk 0:00:04.2]} 20... Rad8 {[%clk 0:01:30.9]} 21.
Be3 {[%clk 0:00:03.8]} 21... Nxe3 {[%clk 0:01:20.9]} 22. Qxe3 {[%clk 0:00:04.3]}
22... Qxe3 {[%clk 0:01:01.9]} 23. fxe3 {[%clk 0:00:04.5]} 23... Bxb2 {[%clk
0:01:00.9]} 24. Rf1 {[%clk 0:00:04.7]} 24... Rde8 {[%clk 0:00:44.8]} 25. Rb7
{[%clk 0:00:02.2]} 25... Rxe3 {[%clk 0:00:40.9]} 26. Bd5 {[%clk 0:00:02.8]}
26... Bd4 {[%clk 0:00:36.3]} 27. Kg2 {[%clk 0:00:02.5]} 27... Re2+ {[%clk
0:00:34.4]} 28. Kf3 {[%clk 0:00:02.6]} 28... Rc2 {[%clk 0:00:22.6]} 29. Ke4
{[%clk 0:00:02.2]} 29... Kg7 {[%clk 0:00:19.1]} 30. Rfxf7+ {[%clk 0:00:02.3]}
30... Rxf7 {[%clk 0:00:19.1]} 31. Rxf7+ {[%clk 0:00:03.2]} 31... Kh6 {[%clk
0:00:19.6]} 32. Kxd4 {[%clk 0:00:04.1]} 32... Rd2+ {[%clk 0:00:05.4]} 33. Kc5
{[%clk 0:00:04.4]} 33... Rc2+ {[%clk 0:00:03.7]} 34. Kd6 {[%clk 0:00:04.8]}
34... Kg5 {[%clk 0:00:03.1]} 35. c7 {[%clk 0:00:04.9]} 35... b4 {[%clk
0:00:02.3]} 36. Bc6 {[%clk 0:00:05.1]} 36... Rd2+ {[%clk 0:00:01.5]} 37. Kc5
{[%clk 0:00:05.7]} 37... b3 {[%clk 0:00:01.6]} 38. axb3 {[%clk 0:00:05.7]} 1-0